[Event "Titled Tuesday Blitz January 31 Early 2023"]
[White "Ciuffoletti, Paolo"]
[Black "Sourath Biswas"]
[WhiteFideId "807630"]
[BlackFideId "35091484"]
[WhiteElo "2106"]
[BlackElo "2281"]
[Result "0-1"]
[Round "01"]
[TimeControl "180+2"]
[Date "2023.01.31"]
[WhiteClock "0:00:10"]
[BlackClock "0:01:28"]

1. e4 {[%clk 0:02:58]}  c6 {[%clk 0:02:59]} 2. d4 {[%clk 0:02:57]}  d5 {[%clk 0:02:52]} 3. exd5 {[%clk 0:02:57]}  cxd5 {[%clk 0:02:52]} 4. c4 {[%clk 0:02:57]}  Nf6 {[%clk 0:02:52]} 5. Nc3 {[%clk 0:02:57]}  Nc6 {[%clk 0:02:52]} 6. Nf3 {[%clk 0:02:57]}  Bf5 {[%clk 0:02:53]} 7. a3 {[%clk 0:02:16]}  e6 {[%clk 0:02:48]} 8. cxd5 {[%clk 0:02:12]}  Nxd5 {[%clk 0:02:49]} 9. Qb3 {[%clk 0:02:07]}  Qd7 {[%clk 0:02:29]} 10. Bb5 {[%clk 0:02:03]}  Bd6 {[%clk 0:02:30]} 11. O-O {[%clk 0:01:46]}  O-O {[%clk 0:02:26]} 12. Ne5 {[%clk 0:01:42]}  Nxd4 {[%clk 0:01:51]} 13. Qd1 {[%clk 0:01:19]}  Qc7 {[%clk 0:01:42]} 14. Nd7 {[%clk 0:00:22]}  Nxc3 {[%clk 0:01:30]} 15. bxc3 {[%clk 0:00:21]}  Nxb5 {[%clk 0:01:30]} 16. Nxf8 {[%clk 0:00:16]}  Rxf8 {[%clk 0:01:29]} 17. g3 {[%clk 0:00:12]}  Nxc3 {[%clk 0:01:28]} 18. Qc2 {[%clk 0:00:10]}  Bxc2 {[%clk 0:01:28]} 0-1


[Site "https://www.chess.com"]

[Event "Titled Tuesday Blitz January 31 Early 2023"]
[White "Zampronha, Wladimir Camilo"]
[Black "Odegov, Artem"]
[WhiteFideId "2103087"]
[BlackFideId "34183644"]
[WhiteElo "2176"]
[BlackElo "2261"]
[Result "0-1"]
[Round "01"]
[TimeControl "180+2"]
[Date "2023.01.31"]
[WhiteClock "0:00:01"]
[BlackClock "0:00:09"]

1. e4 {[%clk 0:03:00]}  e6 {[%clk 0:02:59]} 2. d4 {[%clk 0:03:00]}  d5 {[%clk 0:02:59]} 3. Nc3 {[%clk 0:03:00]}  Bb4 {[%clk 0:02:59]} 4. e5 {[%clk 0:03:01]}  c5 {[%clk 0:03:00]} 5. a3 {[%clk 0:03:00]}  Bxc3+ {[%clk 0:03:00]} 6. bxc3 {[%clk 0:03:01]}  Ne7 {[%clk 0:03:01]} 7. Qg4 {[%clk 0:03:00]}  cxd4 {[%clk 0:03:02]} 8. Qxg7 {[%clk 0:02:59]}  Rg8 {[%clk 0:03:02]} 9. Qxh7 {[%clk 0:02:59]}  Qc7 {[%clk 0:03:03]} 10. Qd3 {[%clk 0:02:39]}  Nbc6 {[%clk 0:02:45]} 11. cxd4 {[%clk 0:02:37]}  Nxe5 {[%clk 0:02:36]} 12. Qb3 {[%clk 0:02:15]}  Nc4 {[%clk 0:02:31]} 13. Nf3 {[%clk 0:02:07]}  Bd7 {[%clk 0:02:27]} 14. Bg5 {[%clk 0:02:04]}  Nf5 {[%clk 0:02:02]} 15. h4 {[%clk 0:02:00]}  Rc8 {[%clk 0:01:46]} 16. Bd3 {[%clk 0:02:01]}  Qa5+ {[%clk 0:01:38]} 17. Qb4 {[%clk 0:01:51]}  Qxb4+ {[%clk 0:01:11]} 18. axb4 {[%clk 0:01:52]}  a6 {[%clk 0:01:12]} 19. g4 {[%clk 0:01:24]}  Nfd6 {[%clk 0:00:59]} 20. h5 {[%clk 0:01:25]}  Ne4 {[%clk 0:00:50]} 21. h6 {[%clk 0:01:10]}  Nxg5 {[%clk 0:00:47]} 22. Nxg5 {[%clk 0:01:11]}  Rxg5 {[%clk 0:00:48]} 23. h7 {[%clk 0:01:12]}  Ke7 {[%clk 0:00:48]} 24. h8=Q {[%clk 0:01:11]}  Rxh8 {[%clk 0:00:48]} 25. Rxh8 {[%clk 0:01:12]}  Rxg4 {[%clk 0:00:49]} 26. Bxc4 {[%clk 0:01:05]}  dxc4 {[%clk 0:00:49]} 27. Kd2 {[%clk 0:00:58]}  Rxd4+ {[%clk 0:00:48]} 28. Kc3 {[%clk 0:00:59]}  Rf4 {[%clk 0:00:48]} 29. Rh2 {[%clk 0:00:53]}  Bb5 {[%clk 0:00:46]} 30. Rd1 {[%clk 0:00:48]}  Rf3+ {[%clk 0:00:45]} 31. Kd4 {[%clk 0:00:41]}  Rf5 {[%clk 0:00:37]} 32. Kc3 {[%clk 0:00:37]}  e5 {[%clk 0:00:35]} 33. Rd5 {[%clk 0:00:33]}  Rf3+ {[%clk 0:00:32]} 34. Kb2 {[%clk 0:00:30]}  Ke6 {[%clk 0:00:31]} 35. Rd8 {[%clk 0:00:24]}  Bc6 {[%clk 0:00:30]} 36. c3 {[%clk 0:00:11]}  f6 {[%clk 0:00:20]} 37. Rd2 {[%clk 0:00:12]}  e4 {[%clk 0:00:19]} 38. Re2 {[%clk 0:00:09]}  Ke5 {[%clk 0:00:19]} 39. Rh5+ {[%clk 0:00:07]}  f5 {[%clk 0:00:20]} 40. Rh2 {[%clk 0:00:08]}  Kf4 {[%clk 0:00:20]} 41. Rh4+ {[%clk 0:00:07]}  Kg5 {[%clk 0:00:20]} 42. Rh2 {[%clk 0:00:08]}  Rd3 {[%clk 0:00:20]} 43. Kc1 {[%clk 0:00:06]}  Kf4 {[%clk 0:00:20]} 44. Kb2 {[%clk 0:00:05]}  Kf3 {[%clk 0:00:18]} 45. Rc2 {[%clk 0:00:05]}  f4 {[%clk 0:00:18]} 46. Rh3+ {[%clk 0:00:06]}  Kg4 {[%clk 0:00:18]} 47. Rh2 {[%clk 0:00:06]}  e3 {[%clk 0:00:17]} 48. fxe3 {[%clk 0:00:06]}  fxe3 {[%clk 0:00:18]} 49. Rh8 {[%clk 0:00:05]}  Bf3 {[%clk 0:00:18]} 50. Rg8+ {[%clk 0:00:05]}  Kf4 {[%clk 0:00:16]} 51. Rf8+ {[%clk 0:00:05]}  Ke4 {[%clk 0:00:17]} 52. Re8+ {[%clk 0:00:05]}  Kd5 {[%clk 0:00:17]} 53. Rh2 {[%clk 0:00:01]}  Kc6 {[%clk 0:00:10]} 54. Rh3 {[%clk 0:00:01]}  Rd2+ {[%clk 0:00:09]} 0-1


[Site "https://www.chess.com"]

[Event "Titled Tuesday Blitz January 31 Early 2023"]
[White "Weetik, Vjacheslav"]
[Black "Kohler, Aran"]
[WhiteFideId "4153472"]
[BlackFideId "1002856"]
[WhiteElo "2423"]
[BlackElo "2010"]
[Result "1-0"]
[Round "01"]
[TimeControl "180+2"]
[Date "2023.01.31"]
[WhiteClock "0:00:42"]
[BlackClock "0:00:41"]

1. d4 {[%clk 0:02:55]}  Nf6 {[%clk 0:02:57]} 2. Nf3 {[%clk 0:02:55]}  d5 {[%clk 0:02:54]} 3. c4 {[%clk 0:02:53]}  c6 {[%clk 0:02:53]} 4. Nc3 {[%clk 0:02:52]}  e6 {[%clk 0:02:54]} 5. e3 {[%clk 0:02:52]}  Nbd7 {[%clk 0:02:53]} 6. Bd3 {[%clk 0:02:52]}  Bd6 {[%clk 0:02:52]} 7. O-O {[%clk 0:02:51]}  O-O {[%clk 0:02:49]} 8. e4 {[%clk 0:02:51]}  dxc4 {[%clk 0:02:49]} 9. Bxc4 {[%clk 0:02:51]}  e5 {[%clk 0:02:49]} 10. Be3 {[%clk 0:02:48]}  Qe7 {[%clk 0:02:33]} 11. d5 {[%clk 0:02:35]}  Nb6 {[%clk 0:02:29]} 12. Bb3 {[%clk 0:02:28]}  Bg4 {[%clk 0:02:26]} 13. h3 {[%clk 0:02:26]}  Bxf3 {[%clk 0:02:22]} 14. Qxf3 {[%clk 0:02:26]}  cxd5 {[%clk 0:02:19]} 15. exd5 {[%clk 0:01:57]}  e4 {[%clk 0:02:13]} 16. Qf5 {[%clk 0:01:54]}  Qe5 {[%clk 0:01:58]} 17. Qxe5 {[%clk 0:01:53]}  Bxe5 {[%clk 0:01:59]} 18. Rfd1 {[%clk 0:01:37]}  Rac8 {[%clk 0:01:51]} 19. Nb5 {[%clk 0:01:24]}  a6 {[%clk 0:01:13]} 20. Na7 {[%clk 0:01:15]}  Nc4 {[%clk 0:01:06]} 21. Nxc8 {[%clk 0:01:11]}  Rxc8 {[%clk 0:01:05]} 22. Bxc4 {[%clk 0:00:59]}  b5 {[%clk 0:01:05]} 23. Bb3 {[%clk 0:00:54]}  Bxb2 {[%clk 0:01:06]} 24. Rab1 {[%clk 0:00:54]}  Be5 {[%clk 0:01:06]} 25. Rbc1 {[%clk 0:00:52]}  Rd8 {[%clk 0:01:04]} 26. Rc6 {[%clk 0:00:50]}  a5 {[%clk 0:01:04]} 27. Bb6 {[%clk 0:00:47]}  Ra8 {[%clk 0:01:01]} 28. Bxa5 {[%clk 0:00:45]}  h5 {[%clk 0:00:48]} 29. Bc3 {[%clk 0:00:42]}  Bxc3 {[%clk 0:00:41]} 30. Rxc3 {[%clk 0:00:42]} 1-0


[Site "https://www.chess.com"]

[Event "Titled Tuesday Blitz January 31 Early 2023"]
[White "Reprintsev, Alexander"]
[Black "Alhadad, Mahmoud"]
[WhiteFideId "14100541"]
[BlackFideId "11501863"]
[WhiteElo "2253"]
[BlackElo "1840"]
[Result "1-0"]
[Round "01"]
[TimeControl "180+2"]
[Date "2023.01.31"]
[WhiteClock "0:00:48"]
[BlackClock "0:00:03"]

1. e4 {[%clk 0:02:47]}  d5 {[%clk 0:02:59]} 2. exd5 {[%clk 0:02:46]}  Nf6 {[%clk 0:02:59]} 3. d4 {[%clk 0:02:46]}  Bg4 {[%clk 0:02:58]} 4. Bb5+ {[%clk 0:02:43]}  Nbd7 {[%clk 0:02:57]} 5. Be2 {[%clk 0:02:43]}  Bxe2 {[%clk 0:02:56]} 6. Qxe2 {[%clk 0:02:44]}  Nxd5 {[%clk 0:02:54]} 7. c4 {[%clk 0:02:44]}  N5b6 {[%clk 0:02:53]} 8. Nf3 {[%clk 0:02:44]}  Nf6 {[%clk 0:02:50]} 9. O-O {[%clk 0:02:42]}  e6 {[%clk 0:02:49]} 10. Rd1 {[%clk 0:02:36]}  c6 {[%clk 0:02:43]} 11. Ne5 {[%clk 0:02:31]}  Be7 {[%clk 0:02:40]} 12. Be3 {[%clk 0:02:21]}  O-O {[%clk 0:02:39]} 13. Nd2 {[%clk 0:02:21]}  Nfd7 {[%clk 0:02:25]} 14. Ne4 {[%clk 0:02:08]}  Qc8 {[%clk 0:02:14]} 15. b3 {[%clk 0:02:00]}  Rd8 {[%clk 0:02:07]} 16. Qh5 {[%clk 0:01:46]}  Nxe5 {[%clk 0:01:59]} 17. dxe5 {[%clk 0:01:46]}  Rxd1+ {[%clk 0:01:59]} 18. Rxd1 {[%clk 0:01:45]}  Nd7 {[%clk 0:01:56]} 19. Nd6 {[%clk 0:01:42]}  Bxd6 {[%clk 0:01:48]} 20. exd6 {[%clk 0:01:42]}  c5 {[%clk 0:01:40]} 21. h3 {[%clk 0:01:31]}  a5 {[%clk 0:01:39]} 22. a4 {[%clk 0:01:30]}  Ra6 {[%clk 0:01:34]} 23. Bf4 {[%clk 0:01:28]}  Rb6 {[%clk 0:01:31]} 24. Qf3 {[%clk 0:01:27]}  Qc6 {[%clk 0:01:27]} 25. Qc3 {[%clk 0:01:23]}  Qe4 {[%clk 0:01:14]} 26. Bg3 {[%clk 0:01:15]}  h5 {[%clk 0:01:04]} 27. f3 {[%clk 0:01:11]}  Qe2 {[%clk 0:00:45]} 28. Rd2 {[%clk 0:01:09]}  Rxb3 {[%clk 0:00:40]} 29. Qxb3 {[%clk 0:01:08]}  Qxd2 {[%clk 0:00:39]} 30. Qxb7 {[%clk 0:01:09]}  Qd1+ {[%clk 0:00:33]} 31. Kh2 {[%clk 0:01:09]}  Qxa4 {[%clk 0:00:33]} 32. h4 {[%clk 0:01:05]}  Kh7 {[%clk 0:00:27]} 33. Be1 {[%clk 0:00:59]}  Nf6 {[%clk 0:00:18]} 34. Bc3 {[%clk 0:00:59]}  Qxc4 {[%clk 0:00:17]} 35. Bxf6 {[%clk 0:00:59]}  gxf6 {[%clk 0:00:16]} 36. Qe4+ {[%clk 0:00:58]}  Qxe4 {[%clk 0:00:16]} 37. fxe4 {[%clk 0:00:59]}  c4 {[%clk 0:00:14]} 38. d7 {[%clk 0:01:00]}  c3 {[%clk 0:00:14]} 39. d8=Q {[%clk 0:01:01]}  c2 {[%clk 0:00:13]} 40. Qc7 {[%clk 0:01:01]}  Kh6 {[%clk 0:00:13]} 41. Qxc2 {[%clk 0:01:01]}  e5 {[%clk 0:00:07]} 42. Qd2+ {[%clk 0:00:57]}  Kg6 {[%clk 0:00:07]} 43. Qxa5 {[%clk 0:00:58]}  Kg7 {[%clk 0:00:07]} 44. g4 {[%clk 0:00:55]}  Kh6 {[%clk 0:00:05]} 45. Kg3 {[%clk 0:00:56]}  Kh7 {[%clk 0:00:05]} 46. Qd8 {[%clk 0:00:54]}  Kg7 {[%clk 0:00:04]} 47. g5 {[%clk 0:00:54]}  Kh7 {[%clk 0:00:03]} 48. Qxf6 {[%clk 0:00:48]} 1-0


[Site "https://www.chess.com"]

[Event "Titled Tuesday Blitz January 31 Early 2023"]
[White "Atanasov, Anthony"]
[Black "Ardila, Oscar Humberto"]
[WhiteFideId "2623897"]
[BlackFideId "4404742"]
[WhiteElo "2368"]
[BlackElo "1982"]
[Result "1-0"]
[Round "01"]
[TimeControl "180+2"]
[Date "2023.01.31"]
[WhiteClock "0:00:26"]
[BlackClock "0:00:59"]

1. Nf3 {[%clk 0:03:00]}  Nf6 {[%clk 0:02:59]} 2. d4 {[%clk 0:02:59]}  g6 {[%clk 0:02:58]} 3. g3 {[%clk 0:02:48]}  Bg7 {[%clk 0:02:56]} 4. Bg2 {[%clk 0:02:48]}  d6 {[%clk 0:02:56]} 5. O-O {[%clk 0:02:49]}  O-O {[%clk 0:02:55]} 6. Re1 {[%clk 0:02:44]}  Nbd7 {[%clk 0:02:51]} 7. e4 {[%clk 0:02:44]}  e5 {[%clk 0:02:49]} 8. c3 {[%clk 0:02:43]}  c6 {[%clk 0:02:49]} 9. Qc2 {[%clk 0:02:37]}  Qc7 {[%clk 0:02:47]} 10. dxe5 {[%clk 0:02:33]}  dxe5 {[%clk 0:02:46]} 11. Na3 {[%clk 0:02:30]}  Re8 {[%clk 0:02:45]} 12. h3 {[%clk 0:02:25]}  b5 {[%clk 0:02:44]} 13. Be3 {[%clk 0:02:25]}  Bb7 {[%clk 0:02:41]} 14. Rad1 {[%clk 0:02:25]}  a5 {[%clk 0:02:39]} 15. c4 {[%clk 0:02:17]}  b4 {[%clk 0:02:38]} 16. Nb1 {[%clk 0:02:18]}  Ba6 {[%clk 0:02:34]} 17. Nbd2 {[%clk 0:02:13]}  Nf8 {[%clk 0:02:33]} 18. Kh2 {[%clk 0:02:09]}  Rad8 {[%clk 0:02:32]} 19. Nb3 {[%clk 0:02:02]}  Ne6 {[%clk 0:02:28]} 20. Ng5 {[%clk 0:01:43]}  Nxg5 {[%clk 0:02:12]} 21. Bxg5 {[%clk 0:01:42]}  Rxd1 {[%clk 0:02:11]} 22. Rxd1 {[%clk 0:01:40]}  h6 {[%clk 0:02:09]} 23. Nc5 {[%clk 0:01:30]}  Bc8 {[%clk 0:02:07]} 24. Be3 {[%clk 0:01:26]}  Bf8 {[%clk 0:02:03]} 25. Qd2 {[%clk 0:01:16]}  Bxc5 {[%clk 0:01:52]} 26. Bxc5 {[%clk 0:01:14]}  Nd7 {[%clk 0:01:52]} 27. Bd6 {[%clk 0:01:09]}  Qa7 {[%clk 0:01:49]} 28. c5 {[%clk 0:00:54]}  Nf8 {[%clk 0:01:48]} 29. Qxh6 {[%clk 0:00:52]}  Nd7 {[%clk 0:01:32]} 30. Rd3 {[%clk 0:00:40]}  Nxc5 {[%clk 0:01:29]} 31. Qe3 {[%clk 0:00:40]}  Ba6 {[%clk 0:01:07]} 32. Bxc5 {[%clk 0:00:36]}  Qb7 {[%clk 0:01:06]} 33. Rd6 {[%clk 0:00:34]}  Bc4 {[%clk 0:01:04]} 34. Qg5 {[%clk 0:00:30]}  Qb5 {[%clk 0:00:59]} 35. Rxg6+ {[%clk 0:00:26]} 1-0


[Site "https://www.chess.com"]

[Event "Titled Tuesday Blitz January 31 Early 2023"]
[White "Kornyukov, Alexey"]
[Black "Yelisieiev, Yevhenii"]
[WhiteFideId "4150457"]
[BlackFideId "14139642"]
[WhiteElo "2452"]
[BlackElo "2418"]
[Result "0-1"]
[Round "01"]
[TimeControl "180+2"]
[Date "2023.01.31"]
[WhiteClock "0:00:13"]
[BlackClock "0:00:11"]

1. e4 {[%clk 0:02:58]}  d6 {[%clk 0:02:59]} 2. d4 {[%clk 0:02:56]}  Nf6 {[%clk 0:03:00]} 3. Nc3 {[%clk 0:02:55]}  e5 {[%clk 0:03:01]} 4. dxe5 {[%clk 0:02:53]}  dxe5 {[%clk 0:03:02]} 5. Qxd8+ {[%clk 0:02:53]}  Kxd8 {[%clk 0:03:03]} 6. Bc4 {[%clk 0:02:53]}  Ke8 {[%clk 0:03:02]} 7. Nf3 {[%clk 0:02:52]}  Nbd7 {[%clk 0:03:02]} 8. Ng5 {[%clk 0:02:52]}  Bb4 {[%clk 0:02:55]} 9. Nxf7 {[%clk 0:02:34]}  Rf8 {[%clk 0:02:54]} 10. Ng5 {[%clk 0:02:32]}  Nc5 {[%clk 0:02:45]} 11. Bd2 {[%clk 0:02:21]}  Bxc3 {[%clk 0:02:36]} 12. Bxc3 {[%clk 0:02:19]}  Nfxe4 {[%clk 0:02:37]} 13. Nxe4 {[%clk 0:02:16]}  Nxe4 {[%clk 0:02:38]} 14. Bxe5 {[%clk 0:02:00]}  Nxf2 {[%clk 0:02:19]} 15. O-O {[%clk 0:01:48]}  Ng4 {[%clk 0:02:11]} 16. Rxf8+ {[%clk 0:01:40]}  Kxf8 {[%clk 0:02:10]} 17. Rf1+ {[%clk 0:01:38]}  Ke8 {[%clk 0:02:09]} 18. Bxg7 {[%clk 0:01:36]}  Kd7 {[%clk 0:01:47]} 19. Rf7+ {[%clk 0:01:32]}  Kc6 {[%clk 0:01:47]} 20. Be2 {[%clk 0:01:26]}  Be6 {[%clk 0:01:32]} 21. Bf3+ {[%clk 0:01:24]}  Kd6 {[%clk 0:01:27]} 22. Bf8+ {[%clk 0:01:18]}  Ke5 {[%clk 0:01:16]} 23. Bg7+ {[%clk 0:01:15]}  Kd6 {[%clk 0:01:13]} 24. Rf4 {[%clk 0:01:12]}  Ne3 {[%clk 0:00:54]} 25. Bf8+ {[%clk 0:01:10]}  Kd7 {[%clk 0:00:50]} 26. Rd4+ {[%clk 0:01:03]}  Ke8 {[%clk 0:00:46]} 27. Re4 {[%clk 0:01:00]}  Kxf8 {[%clk 0:00:41]} 28. Rxe6 {[%clk 0:00:59]}  Nxc2 {[%clk 0:00:40]} 29. Rh6 {[%clk 0:00:53]}  Kg7 {[%clk 0:00:38]} 30. Rh4 {[%clk 0:00:53]}  c6 {[%clk 0:00:31]} 31. Rc4 {[%clk 0:00:51]}  Ne3 {[%clk 0:00:29]} 32. Re4 {[%clk 0:00:50]}  Nd5 {[%clk 0:00:29]} 33. Re5 {[%clk 0:00:49]}  Rd8 {[%clk 0:00:27]} 34. Bxd5 {[%clk 0:00:47]}  cxd5 {[%clk 0:00:16]} 35. Re7+ {[%clk 0:00:47]}  Kg6 {[%clk 0:00:17]} 36. Rxb7 {[%clk 0:00:35]}  d4 {[%clk 0:00:15]} 37. Rc7 {[%clk 0:00:30]}  d3 {[%clk 0:00:13]} 38. Rc1 {[%clk 0:00:30]}  Kf5 {[%clk 0:00:14]} 39. Kf2 {[%clk 0:00:28]}  Ke4 {[%clk 0:00:14]} 40. Re1+ {[%clk 0:00:27]}  Kd4 {[%clk 0:00:14]} 41. Rd1 {[%clk 0:00:27]}  Re8 {[%clk 0:00:14]} 42. Rd2 {[%clk 0:00:26]}  Rf8+ {[%clk 0:00:14]} 43. Ke1 {[%clk 0:00:25]}  Ke3 {[%clk 0:00:15]} 44. Rd1 {[%clk 0:00:16]}  Rc8 {[%clk 0:00:11]} 45. g4 {[%clk 0:00:15]}  Rc2 {[%clk 0:00:11]} 46. g5 {[%clk 0:00:14]}  Rxh2 {[%clk 0:00:11]} 47. b4 {[%clk 0:00:13]}  Rh1# {[%clk 0:00:11]} 0-1


[Site "https://www.chess.com"]

[Event "Titled Tuesday Blitz January 31 Early 2023"]
[White "SicilianPanzer"]
[Black "Kopczynski, Michal"]
[BlackFideId "1124200"]
[WhiteElo "2195"]
[BlackElo "2225"]
[Result "0-1"]
[Round "01"]
[TimeControl "180+2"]
[Date "2023.01.31"]
[WhiteClock "0:00:02"]
[BlackClock "0:00:14"]

1. c4 {[%clk 0:02:59]}  g6 {[%clk 0:02:59]} 2. Nc3 {[%clk 0:02:57]}  Bg7 {[%clk 0:02:59]} 3. d4 {[%clk 0:02:56]}  d6 {[%clk 0:02:59]} 4. e4 {[%clk 0:02:55]}  Nf6 {[%clk 0:03:00]} 5. Be3 {[%clk 0:02:54]}  O-O {[%clk 0:03:00]} 6. h3 {[%clk 0:02:52]}  e5 {[%clk 0:03:00]} 7. d5 {[%clk 0:02:52]}  Nh5 {[%clk 0:02:57]} 8. Be2 {[%clk 0:02:21]}  Nf4 {[%clk 0:02:57]} 9. Bf3 {[%clk 0:02:20]}  g5 {[%clk 0:02:48]} 10. g3 {[%clk 0:02:12]}  Ng6 {[%clk 0:02:48]} 11. Bg4 {[%clk 0:02:11]}  Nd7 {[%clk 0:02:25]} 12. Qd2 {[%clk 0:02:06]}  h6 {[%clk 0:02:10]} 13. h4 {[%clk 0:01:52]}  Nb6 {[%clk 0:02:06]} 14. Be2 {[%clk 0:01:34]}  f6 {[%clk 0:01:39]} 15. h5 {[%clk 0:01:31]}  Ne7 {[%clk 0:01:34]} 16. g4 {[%clk 0:01:06]}  c6 {[%clk 0:01:25]} 17. f3 {[%clk 0:01:03]}  cxd5 {[%clk 0:01:24]} 18. cxd5 {[%clk 0:00:38]}  Bd7 {[%clk 0:01:19]} 19. a4 {[%clk 0:00:25]}  Be8 {[%clk 0:01:11]} 20. a5 {[%clk 0:00:23]}  Nd7 {[%clk 0:01:11]} 21. b4 {[%clk 0:00:17]}  b6 {[%clk 0:01:09]} 22. Bd3 {[%clk 0:00:12]}  bxa5 {[%clk 0:01:08]} 23. bxa5 {[%clk 0:00:09]}  Nc8 {[%clk 0:00:56]} 24. Nge2 {[%clk 0:00:08]}  Rf7 {[%clk 0:00:50]} 25. Kf2 {[%clk 0:00:08]}  Bf8 {[%clk 0:00:49]} 26. Rhb1 {[%clk 0:00:08]}  Be7 {[%clk 0:00:49]} 27. Rb2 {[%clk 0:00:08]}  f5 {[%clk 0:00:37]} 28. exf5 {[%clk 0:00:08]}  Nf6 {[%clk 0:00:37]} 29. Be4 {[%clk 0:00:05]}  Rg7 {[%clk 0:00:22]} 30. a6 {[%clk 0:00:05]}  Nb6 {[%clk 0:00:21]} 31. Bxb6 {[%clk 0:00:04]}  axb6 {[%clk 0:00:22]} 32. Qe3 {[%clk 0:00:02]}  Nd7 {[%clk 0:00:19]} 33. Rba2 {[%clk 0:00:01]}  Nc5 {[%clk 0:00:19]} 34. Nc1 {[%clk 0:00:02]}  Qc7 {[%clk 0:00:18]} 35. Nd3 {[%clk 0:00:02]}  Nb3 {[%clk 0:00:14]} 36. Nb5 {[%clk 0:00:02]}  Bxb5 {[%clk 0:00:14]} 0-1


[Site "https://www.chess.com"]

[Event "Titled Tuesday Blitz January 31 Early 2023"]
[White "Iskusnyh, Sergei"]
[Black "Torres Dominguez, David"]
[WhiteFideId "4120027"]
[BlackFideId "2220857"]
[WhiteElo "2440"]
[BlackElo "1994"]
[Result "0-1"]
[Round "01"]
[TimeControl "180+2"]
[Date "2023.01.31"]
[WhiteClock "0:00:09"]
[BlackClock "0:00:14"]

1. d4 {[%clk 0:02:52]}  e5 {[%clk 0:03:00]} 2. dxe5 {[%clk 0:02:50]}  d6 {[%clk 0:02:59]} 3. exd6 {[%clk 0:02:41]}  Bxd6 {[%clk 0:02:59]} 4. Nf3 {[%clk 0:02:40]}  Bg4 {[%clk 0:02:59]} 5. Bg5 {[%clk 0:02:32]}  f6 {[%clk 0:02:57]} 6. Bh4 {[%clk 0:02:31]}  Qe7 {[%clk 0:02:54]} 7. Nc3 {[%clk 0:02:27]}  Nc6 {[%clk 0:02:53]} 8. Nd4 {[%clk 0:01:45]}  Ne5 {[%clk 0:02:34]} 9. h3 {[%clk 0:01:36]}  Bd7 {[%clk 0:02:33]} 10. e3 {[%clk 0:01:33]}  O-O-O {[%clk 0:02:29]} 11. Be2 {[%clk 0:01:32]}  Ng6 {[%clk 0:02:21]} 12. Nf3 {[%clk 0:01:21]}  Bc6 {[%clk 0:02:17]} 13. Qd4 {[%clk 0:01:14]}  Kb8 {[%clk 0:02:16]} 14. O-O-O {[%clk 0:01:08]}  Nh6 {[%clk 0:02:13]} 15. Qc4 {[%clk 0:01:03]}  a6 {[%clk 0:01:53]} 16. Rxd6 {[%clk 0:00:59]}  Rxd6 {[%clk 0:01:49]} 17. Bg3 {[%clk 0:00:58]}  Ne5 {[%clk 0:01:40]} 18. Nxe5 {[%clk 0:00:56]}  fxe5 {[%clk 0:01:38]} 19. Bd3 {[%clk 0:00:52]}  Bxg2 {[%clk 0:01:34]} 20. Rg1 {[%clk 0:00:50]}  Bxh3 {[%clk 0:01:32]} 21. Ne4 {[%clk 0:00:49]}  Rc6 {[%clk 0:01:22]} 22. Qa4 {[%clk 0:00:49]}  Bd7 {[%clk 0:01:18]} 23. Qb3 {[%clk 0:00:47]}  Nf5 {[%clk 0:01:14]} 24. Bh2 {[%clk 0:00:46]}  g6 {[%clk 0:01:07]} 25. Nc3 {[%clk 0:00:46]}  Rd8 {[%clk 0:00:55]} 26. Nd5 {[%clk 0:00:44]}  Qc5 {[%clk 0:00:52]} 27. Be4 {[%clk 0:00:42]}  Be6 {[%clk 0:00:48]} 28. Rd1 {[%clk 0:00:36]}  Bxd5 {[%clk 0:00:38]} 29. Bxd5 {[%clk 0:00:33]}  Rb6 {[%clk 0:00:33]} 30. Qd3 {[%clk 0:00:31]}  Ne7 {[%clk 0:00:23]} 31. e4 {[%clk 0:00:29]}  Nxd5 {[%clk 0:00:23]} 32. exd5 {[%clk 0:00:28]}  Rbd6 {[%clk 0:00:20]} 33. Re1 {[%clk 0:00:21]}  Rxd5 {[%clk 0:00:17]} 34. Qe2 {[%clk 0:00:21]}  Rd2 {[%clk 0:00:16]} 35. Qe4 {[%clk 0:00:21]}  R8d4 {[%clk 0:00:15]} 36. b4 {[%clk 0:00:12]}  Qxb4 {[%clk 0:00:14]} 37. Qxe5 {[%clk 0:00:11]}  Qa3+ {[%clk 0:00:14]} 38. Kb1 {[%clk 0:00:09]}  Rb4+ {[%clk 0:00:14]} 39. Ka1 {[%clk 0:00:09]}  Rxc2 {[%clk 0:00:14]} 0-1


[Site "https://www.chess.com"]

[Event "Titled Tuesday Blitz January 31 Early 2023"]
[White "Bhambure, Shantanu"]
[Black "Sailer, Mike"]
[WhiteFideId "5025931"]
[BlackFideId "2012901"]
[WhiteElo "2336"]
[BlackElo "2109"]
[Result "1-0"]
[Round "01"]
[TimeControl "180+2"]
[Date "2023.01.31"]
[WhiteClock "0:01:27"]
[BlackClock "0:01:37"]

1. d4 {[%clk 0:03:00]}  d5 {[%clk 0:02:59]} 2. c4 {[%clk 0:03:00]}  Bf5 {[%clk 0:03:00]} 3. cxd5 {[%clk 0:03:00]}  Bxb1 {[%clk 0:03:00]} 4. Qa4+ {[%clk 0:03:00]}  Qd7 {[%clk 0:03:00]} 5. Qxd7+ {[%clk 0:02:59]}  Nxd7 {[%clk 0:03:01]} 6. Rxb1 {[%clk 0:03:00]}  Ngf6 {[%clk 0:03:02]} 7. Nf3 {[%clk 0:02:58]}  Nb6 {[%clk 0:03:02]} 8. e3 {[%clk 0:02:56]}  Nbxd5 {[%clk 0:03:03]} 9. b4 {[%clk 0:02:55]}  e6 {[%clk 0:03:00]} 10. b5 {[%clk 0:02:53]}  Bb4+ {[%clk 0:02:59]} 11. Bd2 {[%clk 0:02:52]}  Bxd2+ {[%clk 0:02:59]} 12. Nxd2 {[%clk 0:02:53]}  O-O-O {[%clk 0:02:51]} 13. Bd3 {[%clk 0:02:52]}  Rhe8 {[%clk 0:02:28]} 14. Nf3 {[%clk 0:02:43]}  h6 {[%clk 0:02:21]} 15. O-O {[%clk 0:02:41]}  Nd7 {[%clk 0:02:12]} 16. Rfc1 {[%clk 0:02:40]}  e5 {[%clk 0:02:05]} 17. Bc4 {[%clk 0:02:21]}  N7b6 {[%clk 0:02:02]} 18. Nxe5 {[%clk 0:02:20]}  Nxc4 {[%clk 0:02:02]} 19. Rxc4 {[%clk 0:02:19]}  f6 {[%clk 0:01:59]} 20. Nd3 {[%clk 0:02:18]}  Nb6 {[%clk 0:01:57]} 21. Rc2 {[%clk 0:02:14]}  Rd5 {[%clk 0:01:57]} 22. Nc5 {[%clk 0:02:11]}  f5 {[%clk 0:01:57]} 23. g3 {[%clk 0:02:06]}  g5 {[%clk 0:01:56]} 24. a4 {[%clk 0:02:00]}  Kb8 {[%clk 0:01:56]} 25. a5 {[%clk 0:01:59]}  Nc8 {[%clk 0:01:56]} 26. Kg2 {[%clk 0:01:46]}  Nd6 {[%clk 0:01:54]} 27. b6 {[%clk 0:01:30]}  cxb6 {[%clk 0:01:50]} 28. axb6 {[%clk 0:01:30]}  Ne4 {[%clk 0:01:37]} 29. bxa7+ {[%clk 0:01:27]}  Kxa7 {[%clk 0:01:37]} 30. Rxb7+ {[%clk 0:01:27]} 1-0


[Site "https://www.chess.com"]